[Event "FIDE Women's Grand Swiss 2023"]
[Site "Villa Marina, Douglas, Isle of Man, Isle Of Man"]
[Date "2023.10.26"]
[Round "2.12"]
[White "Cori T., Deysi"]
[Black "Assaubayeva, Bibisara"]
[Result "0-1"]
[TimeControl "40/90 + 30 + 30s/move"]
[WhiteFideId "3801934"]
[BlackFideId "13708694"]
[WhiteElo "2367"]
[BlackElo "2469"]

1. Nf3 {[%clk 01:30:53]} {[%emt 00:00:06]} g6 {[%clk 01:30:54]} {[%emt
00:00:07]} 2. g3 {[%clk 01:23:22]} {[%emt 00:08:01]} Bg7 {[%clk 01:30:18]}
{[%emt 00:01:06]} 3. d4 {[%clk 01:23:46]} {[%emt 00:00:05]} Nf6 {[%clk
01:30:39]} {[%emt 00:00:09]} 4. Bg2 {[%clk 01:24:07]} {[%emt 00:00:09]} O-O
{[%clk 01:31:00]} {[%emt 00:00:09]} 5. O-O {[%clk 01:22:43]} {[%emt 00:01:54]}
d6 {[%clk 01:31:26]} {[%emt 00:00:04]} 6. b3 {[%clk 01:20:52]} {[%emt
00:02:21]} e5 {[%clk 01:31:50]} {[%emt 00:00:06]} 7. dxe5 {[%clk 01:21:09]}
{[%emt 00:00:13]} dxe5 {[%clk 01:32:15]} {[%emt 00:00:04]} 8. Bb2 {[%clk
01:16:35]} {[%emt 00:05:04]} e4 {[%clk 01:32:28]} {[%emt 00:00:17]} 9. Qxd8
{[%clk 01:15:44]} {[%emt 00:01:21]} Rxd8 {[%clk 01:32:57]} {[%emt 00:00:01]} 10.
Ng5 {[%clk 01:16:02]} {[%emt 00:00:12]} Bf5 {[%clk 01:28:06]} {[%emt 00:05:20]}
11. Na3 {[%clk 01:15:24]} {[%emt 00:01:08]} h6 {[%clk 01:23:23]} {[%emt
00:05:14]} 12. Rad1 {[%clk 01:10:46]} {[%emt 00:05:08]} Re8 {[%clk 01:01:32]}
{[%emt 00:22:21]} 13. Nh3 {[%clk 01:10:21]} {[%emt 00:00:54]} Nc6 {[%clk
00:56:03]} {[%emt 00:05:59]} 14. Nf4 {[%clk 01:06:56]} {[%emt 00:03:55]} Red8
{[%clk 00:49:06]} {[%emt 00:07:28]} 15. Nc4 {[%clk 01:00:51]} {[%emt 00:06:35]}
Nb4 {[%clk 00:32:47]} {[%emt 00:16:49]} 16. Ne3 {[%clk 00:52:42]} {[%emt
00:08:39]} Rxd1 {[%clk 00:26:52]} {[%emt 00:06:26]} 17. Rxd1 {[%clk 00:53:09]}
{[%emt 00:00:03]} Nxa2 {[%clk 00:25:31]} {[%emt 00:01:51]} 18. c3 {[%clk
00:49:45]} {[%emt 00:03:53]} Ne8 {[%clk 00:22:28]} {[%emt 00:03:33]} 19. Nfd5
{[%clk 00:42:00]} {[%emt 00:08:16]} Be6 {[%clk 00:19:13]} {[%emt 00:03:45]} 20.
Ra1 {[%clk 00:35:43]} {[%emt 00:06:47]} c6 {[%clk 00:19:07]} {[%emt 00:00:37]}
21. Ne7+ {[%clk 00:36:11]} {[%emt 00:00:01]} Kf8 {[%clk 00:19:12]} {[%emt
00:00:25]} 22. Nxg6+ {[%clk 00:35:43]} {[%emt 00:00:58]} fxg6 {[%clk 00:19:40]}
{[%emt 00:00:02]} 23. Rxa2 {[%clk 00:36:08]} {[%emt 00:00:05]} a5 {[%clk
00:13:48]} {[%emt 00:06:23]} 24. Nc4 {[%clk 00:28:24]} {[%emt 00:08:13]} Bxc4
{[%clk 00:13:16]} {[%emt 00:01:02]} 25. bxc4 {[%clk 00:28:53]} {[%emt
00:00:02]} e3 {[%clk 00:10:18]} {[%emt 00:03:28]} 26. Ra4 {[%clk 00:21:01]}
{[%emt 00:08:22]} Kf7 {[%clk 00:08:15]} {[%emt 00:02:33]} 27. c5 {[%clk
00:20:02]} {[%emt 00:01:29]} Nc7 {[%clk 00:07:18]} {[%emt 00:01:27]} 28. Be4
{[%clk 00:13:38]} {[%emt 00:06:53]} Nb5 {[%clk 00:04:48]} {[%emt 00:02:59]} 29.
Bd3 {[%clk 00:10:22]} {[%emt 00:03:45]} g5 {[%clk 00:03:35]} {[%emt 00:01:43]}
30. Re4 {[%clk 00:08:14]} {[%emt 00:02:38]} exf2+ {[%clk 00:03:56]} {[%emt
00:00:10]} 31. Kxf2 {[%clk 00:08:40]} {[%emt 00:00:04]} Nxc3 {[%clk 00:03:40]}
{[%emt 00:00:46]} 32. Bc4+ {[%clk 00:08:36]} {[%emt 00:00:33]} Kf8 {[%clk
00:03:52]} {[%emt 00:00:18]} 33. Bxc3 {[%clk 00:08:00]} {[%emt 00:01:07]} Bxc3
{[%clk 00:04:20]} 34. e3 {[%clk 00:07:27]} {[%emt 00:01:03]} Bb4 {[%clk
00:03:59]} {[%emt 00:00:51]} 35. Re5 {[%clk 00:07:50]} {[%emt 00:00:07]} a4
{[%clk 00:03:47]} {[%emt 00:00:42]} 36. Rf5+ {[%clk 00:08:10]} {[%emt
00:00:10]} Ke8 {[%clk 00:03:34]} {[%emt 00:00:44]} 37. Re5+ {[%clk 00:05:39]}
{[%emt 00:03:00]} Kd7 {[%clk 00:03:54]} {[%emt 00:00:10]} 38. Be6+ {[%clk
00:05:53]} {[%emt 00:00:16]} Kc7 {[%clk 00:04:00]} {[%emt 00:00:25]} 39. Ba2
{[%clk 00:05:20]} {[%emt 00:01:03]} Rd8 {[%clk 00:04:06]} {[%emt 00:00:24]} 0-1

[Event "FIDE Women's Grand Swiss 2023"]
[Site "Villa Marina, Douglas, Isle of Man, Isle Of Man"]
[Date "2023.10.26"]
[Round "2.13"]
[White "Wagner, Dinara"]
[Black "Tania, Sachdev"]
[Result "1/2-1/2"]
[TimeControl "40/90 + 30 + 30s/move"]
[WhiteFideId "24157570"]
[BlackFideId "5007844"]
[WhiteElo "2461"]
[BlackElo "2389"]

1. d4 {[%clk 01:30:54]} {[%emt 00:00:05]} Nf6 {[%clk 01:30:47]} {[%emt
00:00:14]} 2. c4 {[%clk 01:31:20]} {[%emt 00:00:04]} e6 {[%clk 01:31:14]}
{[%emt 00:00:04]} 3. Nf3 {[%clk 01:31:40]} {[%emt 00:00:10]} d5 {[%clk
01:31:22]} {[%emt 00:00:22]} 4. g3 {[%clk 01:31:59]} {[%emt 00:00:10]} Bb4+
{[%clk 01:31:24]} {[%emt 00:00:28]} 5. Bd2 {[%clk 01:31:18]} {[%emt 00:01:11]}
a5 {[%clk 01:31:26]} {[%emt 00:00:29]} 6. Qb3 {[%clk 01:21:06]} {[%emt
00:10:42]} c5 {[%clk 01:20:59]} {[%emt 00:10:57]} 7. Bxb4 {[%clk 01:11:22]}
{[%emt 00:10:13]} axb4 {[%clk 01:18:28]} {[%emt 00:03:01]} 8. dxc5 {[%clk
01:09:35]} {[%emt 00:02:18]} Nc6 {[%clk 01:18:50]} {[%emt 00:00:08]} 9. cxd5
{[%clk 01:07:19]} {[%emt 00:02:47]} exd5 {[%clk 01:18:40]} {[%emt 00:00:39]} 10.
Bg2 {[%clk 01:01:04]} {[%emt 00:06:45]} O-O {[%clk 01:17:19]} {[%emt 00:01:51]}
11. O-O {[%clk 00:58:29]} {[%emt 00:03:05]} Re8 {[%clk 01:14:58]} {[%emt
00:02:51]} 12. e3 {[%clk 00:56:02]} {[%emt 00:02:57]} d4 {[%clk 00:44:49]}
{[%emt 00:30:38]} 13. exd4 {[%clk 00:28:43]} {[%emt 00:27:49]} Nxd4 {[%clk
00:45:04]} {[%emt 00:00:15]} 14. Nxd4 {[%clk 00:28:40]} {[%emt 00:00:34]} Qxd4
{[%clk 00:45:28]} {[%emt 00:00:05]} 15. Qc2 {[%clk 00:29:00]} {[%emt 00:00:10]}
Ra5 {[%clk 00:41:12]} {[%emt 00:04:46]} 16. Nd2 {[%clk 00:22:10]} {[%emt
00:07:20]} Rxc5 {[%clk 00:34:38]} {[%emt 00:07:03]} 17. Nb3 {[%clk 00:22:36]}
{[%emt 00:00:03]} Rxc2 {[%clk 00:34:54]} {[%emt 00:00:14]} 18. Nxd4 {[%clk
00:23:04]} {[%emt 00:00:03]} Rxb2 {[%clk 00:33:25]} {[%emt 00:02:00]} 19. Rfb1
{[%clk 00:22:43]} {[%emt 00:00:51]} Rd2 {[%clk 00:21:36]} {[%emt 00:12:18]} 20.
Rxb4 {[%clk 00:22:39]} {[%emt 00:00:34]} Rd8 {[%clk 00:14:20]} {[%emt
00:07:45]} 21. Nb3 {[%clk 00:20:47]} {[%emt 00:02:21]} Rd1+ {[%clk 00:14:03]}
{[%emt 00:00:48]} 22. Rxd1 {[%clk 00:21:05]} {[%emt 00:00:12]} Rxd1+ {[%clk
00:14:31]} {[%emt 00:00:02]} 23. Bf1 {[%clk 00:21:32]} {[%emt 00:00:03]} Bh3
{[%clk 00:09:00]} {[%emt 00:06:01]} 24. Nd2 {[%clk 00:21:59]} {[%emt 00:00:03]}
Rxd2 {[%clk 00:03:25]} {[%emt 00:06:05]} 25. Bxh3 {[%clk 00:22:00]} {[%emt
00:00:29]} Rxa2 {[%clk 00:03:49]} {[%emt 00:00:06]} 26. Rxb7 {[%clk 00:22:27]}
{[%emt 00:00:04]} g6 {[%clk 00:04:05]} {[%emt 00:00:13]} 27. Rb8+ {[%clk
00:19:56]} {[%emt 00:03:02]} Kg7 {[%clk 00:04:34]} 28. Rb7 {[%clk 00:20:22]}
{[%emt 00:00:04]} Kg8 {[%clk 00:04:51]} {[%emt 00:00:13]} 29. Rb8+ {[%clk
00:20:49]} {[%emt 00:00:04]} Kg7 {[%clk 00:05:18]} {[%emt 00:00:03]} 30. Rb7
{[%clk 00:21:14]} {[%emt 00:00:04]} Kg8 {[%emt 00:00:23]} 1/2-1/2

[Event "FIDE Women's Grand Swiss 2023"]
[Site "Villa Marina, Douglas, Isle of Man, Isle Of Man"]
[Date "2023.10.26"]
[Round "2.14"]
[White "Narva, Mai"]
[Black "Cramling, Pia"]
[Result "1/2-1/2"]
[TimeControl "40/90 + 30 + 30s/move"]
[WhiteFideId "4500512"]
[BlackFideId "1700030"]
[WhiteElo "2399"]
[BlackElo "2446"]

1. e4 {[%clk 01:30:53]} {[%emt 00:00:05]} c5 {[%clk 01:30:55]} {[%emt
00:00:06]} 2. Nf3 {[%clk 01:31:11]} {[%emt 00:00:12]} e6 {[%clk 01:31:17]}
{[%emt 00:00:08]} 3. d4 {[%clk 01:31:27]} {[%emt 00:00:15]} cxd4 {[%clk
01:31:42]} {[%emt 00:00:05]} 4. Nxd4 {[%clk 01:31:51]} {[%emt 00:00:07]} a6
{[%clk 01:32:04]} {[%emt 00:00:07]} 5. c4 {[%clk 01:32:04]} {[%emt 00:00:17]}
Nf6 {[%clk 01:32:11]} {[%emt 00:00:23]} 6. Nc3 {[%clk 01:32:14]} {[%emt
00:00:20]} Bb4 {[%clk 01:31:35]} {[%emt 00:01:05]} 7. Nc2 {[%clk 01:32:04]}
{[%emt 00:00:40]} Bxc3+ {[%clk 01:29:54]} {[%emt 00:02:11]} 8. bxc3 {[%clk
01:32:28]} {[%emt 00:00:07]} Qa5 {[%clk 01:29:52]} {[%emt 00:00:30]} 9. Qd4
{[%clk 01:32:36]} {[%emt 00:00:23]} Nc6 {[%clk 01:27:10]} {[%emt 00:03:11]} 10.
Qe3 {[%clk 01:32:48]} {[%emt 00:00:20]} e5 {[%clk 01:22:03]} {[%emt 00:05:37]}
11. Ba3 {[%clk 01:25:26]} {[%emt 00:07:52]} Nd4 {[%clk 01:19:17]} {[%emt
00:03:16]} 12. Nxd4 {[%clk 01:23:18]} {[%emt 00:02:39]} Qxa3 {[%clk 01:13:19]}
{[%emt 00:06:28]} 13. Nc2 {[%clk 01:10:24]} {[%emt 00:13:23]} Qe7 {[%clk
01:08:27]} {[%emt 00:05:20]} 14. c5 {[%clk 01:07:42]} {[%emt 00:03:14]} d6
{[%clk 01:05:37]} {[%emt 00:03:20]} 15. cxd6 {[%clk 01:07:03]} {[%emt
00:01:10]} Qxd6 {[%clk 01:06:01]} {[%emt 00:00:05]} 16. Nb4 {[%clk 01:05:49]}
{[%emt 00:01:45]} Be6 {[%clk 00:54:50]} {[%emt 00:11:39]} 17. Be2 {[%clk
00:45:44]} {[%emt 00:20:36]} Rc8 {[%clk 00:52:51]} {[%emt 00:02:28]} 18. f3
{[%clk 00:42:51]} {[%emt 00:03:24]} Nd7 {[%clk 00:47:31]} {[%emt 00:05:49]} 19.
Kf2 {[%clk 00:36:05]} {[%emt 00:07:17]} Qc5 {[%clk 00:46:31]} {[%emt 00:01:30]}
20. Rhc1 {[%clk 00:32:35]} {[%emt 00:04:01]} Ke7 {[%clk 00:44:33]} {[%emt
00:02:25]} 21. Rab1 {[%clk 00:31:06]} {[%emt 00:02:01]} Rc7 {[%clk 00:38:06]}
{[%emt 00:06:56]} 22. c4 {[%clk 00:22:47]} {[%emt 00:08:51]} Rhc8 {[%clk
00:37:37]} {[%emt 00:00:58]} 23. Rb2 {[%clk 00:21:26]} {[%emt 00:01:52]} Qxe3+
{[%clk 00:25:17]} {[%emt 00:12:50]} 24. Kxe3 {[%clk 00:21:49]} {[%emt
00:00:07]} b5 {[%clk 00:23:12]} {[%emt 00:02:34]} 25. Nxa6 {[%clk 00:18:20]}
{[%emt 00:03:59]} Ra7 {[%clk 00:23:32]} {[%emt 00:00:07]} 26. Nb4 {[%clk
00:18:19]} {[%emt 00:00:34]} bxc4 {[%clk 00:23:54]} {[%emt 00:00:08]} 27. Rc3
{[%clk 00:16:43]} {[%emt 00:02:06]} Nc5 {[%clk 00:21:59]} {[%emt 00:02:25]} 28.
Rd2 {[%clk 00:15:19]} {[%emt 00:01:54]} Na4 {[%clk 00:20:06]} {[%emt 00:02:22]}
29. Ra3 {[%clk 00:13:02]} {[%emt 00:02:48]} Raa8 {[%clk 00:19:36]} {[%emt
00:00:59]} 30. g3 {[%clk 00:12:23]} {[%emt 00:01:11]} g5 {[%clk 00:16:55]}
{[%emt 00:03:11]} 31. f4 {[%clk 00:09:36]} {[%emt 00:03:16]} gxf4+ {[%clk
00:14:30]} {[%emt 00:02:55]} 32. gxf4 {[%clk 00:10:00]} {[%emt 00:00:06]} exf4+
{[%clk 00:12:26]} {[%emt 00:02:34]} 33. Kxf4 {[%clk 00:10:24]} {[%emt
00:00:06]} Nb6 {[%clk 00:12:09]} {[%emt 00:00:47]} 34. Rc3 {[%clk 00:10:01]}
{[%emt 00:00:54]} Ra4 {[%clk 00:10:29]} {[%emt 00:02:09]} 35. Rb2 {[%clk
00:06:50]} {[%emt 00:03:42]} Ra5 {[%clk 00:09:03]} {[%emt 00:01:55]} 36. Nc2
{[%clk 00:05:31]} {[%emt 00:01:51]} Na4 {[%clk 00:09:03]} {[%emt 00:00:29]} 37.
Rb7+ {[%clk 00:05:44]} {[%emt 00:00:17]} Kf8 {[%clk 00:08:55]} {[%emt
00:00:37]} 38. Ra3 {[%clk 00:05:25]} {[%emt 00:00:51]} Raa8 {[%clk 00:02:02]}
{[%emt 00:07:23]} 39. Rb4 {[%clk 00:02:31]} {[%emt 00:03:23]} Nc5 {[%clk
00:02:08]} {[%emt 00:00:24]} 40. Rxa8 {[%clk 00:00:45]} {[%emt 00:02:17]} Rxa8
{[%clk 00:02:33]} {[%emt 00:00:05]} 41. Bxc4 {[%clk 00:27:59]} {[%emt
00:03:16]} Bxc4 {[%clk 00:27:38]} {[%emt 00:05:25]} 42. Rxc4 {[%clk 00:28:23]}
{[%emt 00:00:06]} Ne6+ {[%clk 00:28:00]} {[%emt 00:00:08]} 43. Kg4 {[%clk
00:27:51]} {[%emt 00:01:02]} Rxa2 {[%clk 00:27:34]} {[%emt 00:00:55]} 44. h4
{[%clk 00:27:38]} {[%emt 00:00:43]} Ra5 {[%clk 00:27:15]} {[%emt 00:00:50]} 45.
Ne3 {[%clk 00:27:36]} {[%emt 00:00:32]} h5+ {[%clk 00:27:06]} {[%emt 00:00:38]}
46. Kf3 {[%clk 00:27:47]} {[%emt 00:00:19]} Kg7 {[%clk 00:23:52]} {[%emt
00:03:44]} 47. Nf5+ {[%clk 00:25:54]} {[%emt 00:02:24]} Kh7 {[%clk 00:23:35]}
{[%emt 00:00:47]} 48. Rc3 {[%clk 00:25:37]} {[%emt 00:00:48]} Ng7 {[%clk
00:20:20]} {[%emt 00:03:43]} 49. Nxg7 {[%clk 00:24:27]} {[%emt 00:01:41]} Kxg7
{[%clk 00:20:42]} {[%emt 00:00:08]} 1/2-1/2

[Event "FIDE Women's Grand Swiss 2023"]
[Site "Villa Marina, Douglas, Isle of Man, Isle Of Man"]
[Date "2023.10.26"]
[Round "2.15"]
[White "Mammadzada, Gunay"]
[Black "Socko, Monika"]
[Result "1-0"]
[TimeControl "40/90 + 30 + 30s/move"]
[WhiteFideId "13403729"]
[BlackFideId "1106619"]
[WhiteElo "2441"]
[BlackElo "2380"]

1. Nf3 {[%clk 01:30:55]} {[%emt 00:00:04]} Nf6 {[%clk 01:30:04]} {[%emt
00:00:56]} 2. c4 {[%clk 01:31:19]} {[%emt 00:00:07]} e6 {[%clk 01:29:15]}
{[%emt 00:01:18]} 3. g3 {[%clk 01:31:44]} {[%emt 00:00:05]} d5 {[%clk
01:25:53]} {[%emt 00:03:52]} 4. d4 {[%clk 01:32:04]} {[%emt 00:00:10]} Bb4+
{[%clk 01:25:00]} {[%emt 00:01:22]} 5. Nbd2 {[%clk 01:25:24]} {[%emt 00:07:11]}
dxc4 {[%clk 01:20:44]} {[%emt 00:04:46]} 6. Qc2 {[%clk 01:09:20]} {[%emt
00:16:33]} b5 {[%clk 01:18:46]} {[%emt 00:02:29]} 7. a4 {[%clk 01:09:45]}
{[%emt 00:00:05]} c6 {[%clk 01:16:15]} {[%emt 00:03:00]} 8. Bg2 {[%clk
01:09:39]} {[%emt 00:00:37]} Bb7 {[%clk 01:12:28]} {[%emt 00:04:16]} 9. O-O
{[%clk 01:07:24]} {[%emt 00:02:45]} Nbd7 {[%clk 01:08:31]} {[%emt 00:04:28]} 10.
b3 {[%clk 00:58:51]} {[%emt 00:09:03]} cxb3 {[%clk 01:01:56]} {[%emt 00:07:05]}
11. Nxb3 {[%clk 00:58:58]} {[%emt 00:00:23]} O-O {[%clk 00:59:33]} {[%emt
00:02:53]} 12. Ne1 {[%clk 00:44:51]} {[%emt 00:14:36]} bxa4 {[%clk 00:52:56]}
{[%emt 00:07:08]} 13. Rxa4 {[%clk 00:42:51]} {[%emt 00:02:30]} a5 {[%clk
00:52:59]} {[%emt 00:00:27]} 14. Nd3 {[%clk 00:43:03]} {[%emt 00:00:17]} Nb6
{[%clk 00:49:01]} {[%emt 00:04:28]} 15. Ra1 {[%clk 00:42:18]} {[%emt 00:01:15]}
Nbd5 {[%clk 00:43:11]} {[%emt 00:06:21]} 16. Nbc5 {[%clk 00:38:07]} {[%emt
00:04:40]} Bxc5 {[%clk 00:35:46]} {[%emt 00:07:55]} 17. Nxc5 {[%clk 00:38:10]}
{[%emt 00:00:26]} Ba6 {[%clk 00:35:26]} {[%emt 00:00:51]} 18. Nxa6 {[%clk
00:33:45]} {[%emt 00:04:55]} Rxa6 {[%clk 00:35:45]} {[%emt 00:00:11]} 19. Bd2
{[%clk 00:34:08]} {[%emt 00:00:07]} Qb6 {[%clk 00:32:45]} {[%emt 00:03:29]} 20.
e3 {[%clk 00:30:57]} {[%emt 00:03:41]} Rfa8 {[%clk 00:26:25]} {[%emt 00:06:50]}
21. Rfb1 {[%clk 00:30:23]} {[%emt 00:01:05]} Nb4 {[%clk 00:26:21]} {[%emt
00:00:34]} 22. Qc4 {[%clk 00:30:05]} {[%emt 00:00:48]} h6 {[%clk 00:23:42]}
{[%emt 00:03:10]} 23. h3 {[%clk 00:30:21]} {[%emt 00:00:14]} Nfd5 {[%clk
00:23:18]} {[%emt 00:00:54]} 24. Ra3 {[%clk 00:23:09]} {[%emt 00:07:42]} Qa7
{[%clk 00:18:42]} {[%emt 00:05:07]} 25. Bf1 {[%clk 00:22:24]} {[%emt 00:01:15]}
Nc7 {[%clk 00:14:04]} {[%emt 00:08:09]} 26. Rba1 {[%clk 00:21:24]} {[%emt
00:01:30]} Nbd5 {[%clk 00:07:59]} {[%emt 00:03:34]} 27. Qc5 {[%clk 00:10:43]}
{[%emt 00:11:10]} Nb5 {[%clk 00:05:44]} {[%emt 00:02:45]} 28. Rxa5 {[%clk
00:09:23]} {[%emt 00:01:51]} Qxc5 {[%clk 00:05:36]} {[%emt 00:00:38]} 29. dxc5
{[%clk 00:09:42]} {[%emt 00:00:11]} Rxa5 {[%clk 00:06:02]} {[%emt 00:00:04]} 30.
Rxa5 {[%clk 00:10:04]} {[%emt 00:00:09]} Rxa5 {[%clk 00:06:21]} {[%emt
00:00:12]} 31. Bxa5 {[%clk 00:10:29]} {[%emt 00:00:05]} Kf8 {[%clk 00:06:05]}
{[%emt 00:00:45]} 32. e4 {[%clk 00:08:26]} {[%emt 00:02:33]} Nf6 {[%clk
00:05:52]} {[%emt 00:00:43]} 33. f3 {[%clk 00:04:43]} {[%emt 00:04:14]} Ke7
{[%clk 00:05:43]} {[%emt 00:00:39]} 34. Kf2 {[%clk 00:03:54]} {[%emt 00:01:19]}
Nd7 {[%clk 00:03:57]} {[%emt 00:02:15]} 35. Ke3 {[%clk 00:01:58]} {[%emt
00:02:25]} e5 {[%clk 00:02:13]} {[%emt 00:02:15]} 36. Bxb5 {[%clk 00:01:25]}
{[%emt 00:01:03]} cxb5 {[%clk 00:02:42]} {[%emt 00:00:01]} 37. c6 {[%clk
00:01:49]} {[%emt 00:00:05]} Nf6 {[%clk 00:02:29]} {[%emt 00:00:43]} 38. Bc7
{[%clk 00:01:16]} {[%emt 00:01:04]} Ne8 {[%clk 00:01:16]} {[%emt 00:01:43]} 39.
Bxe5 {[%clk 00:01:43]} {[%emt 00:00:03]} f6 {[%clk 00:01:37]} {[%emt 00:00:09]}
40. Bb8 {[%clk 00:01:39]} {[%emt 00:00:33]} Nd6 {[%clk 00:00:38]} {[%emt
00:01:30]} 41. Kd4 {[%clk 00:01:40]} {[%emt 00:00:29]} Nc4 {[%clk 00:00:43]}
{[%emt 00:00:25]} 42. Kc5 {[%clk 00:30:11]} {[%emt 00:01:57]} Kd8 {[%clk
00:30:01]} {[%emt 00:01:13]} 43. Kxb5 {[%clk 00:26:35]} {[%emt 00:04:06]} Nd2
{[%clk 00:29:58]} {[%emt 00:00:33]} 44. Kc5 {[%clk 00:19:20]} {[%emt 00:07:45]}
Nxf3 {[%clk 00:27:54]} {[%emt 00:02:34]} 45. h4 {[%clk 00:19:30]} {[%emt
00:00:19]} h5 {[%clk 00:25:47]} {[%emt 00:02:38]} 46. Kd5 {[%clk 00:17:37]}
{[%emt 00:02:23]} Ke7 {[%clk 00:16:33]} {[%emt 00:09:44]} 47. Bd6+ {[%clk
00:17:51]} {[%emt 00:00:15]} Kd8 {[%clk 00:17:02]} {[%emt 00:00:02]} 48. e5
{[%clk 00:16:19]} {[%emt 00:02:02]} fxe5 {[%clk 00:15:55]} {[%emt 00:01:37]} 49.
Bxe5 {[%clk 00:16:12]} {[%emt 00:00:38]} g6 {[%clk 00:16:20]} {[%emt 00:00:05]}
50. Kd6 {[%clk 00:16:05]} {[%emt 00:00:36]} Kc8 {[%clk 00:15:51]} {[%emt
00:01:00]} 51. Bf4 {[%clk 00:16:25]} {[%emt 00:00:09]} Nd4 {[%clk 00:15:56]}
{[%emt 00:00:25]} 52. Kd5 {[%clk 00:16:23]} {[%emt 00:00:32]} Nb5 {[%clk
00:14:03]} {[%emt 00:02:23]} 53. Be5 {[%clk 00:16:45]} {[%emt 00:00:08]} Na7
{[%clk 00:14:15]} {[%emt 00:00:19]} 54. Kc5 {[%clk 00:16:07]} {[%emt 00:01:07]}
Kd8 {[%clk 00:14:41]} {[%emt 00:00:05]} 55. Kb6 {[%clk 00:16:32]} {[%emt
00:00:05]} Nc8+ {[%clk 00:14:27]} {[%emt 00:00:44]} 56. Kb7 {[%clk 00:16:59]}
{[%emt 00:00:03]} Ne7 {[%clk 00:14:53]} {[%emt 00:00:04]} 57. Bf6 {[%clk
00:17:22]} {[%emt 00:00:07]} 1-0

[Event "FIDE Women's Grand Swiss 2023"]
[Site "Villa Marina, Douglas, Isle of Man, Isle Of Man"]
[Date "2023.10.26"]
[Round "2.16"]
[White "Ushenina, Anna"]
[Black "Munguntuul, Batkhuyag"]
[Result "1/2-1/2"]
[TimeControl "40/90 + 30 + 30s/move"]
[WhiteFideId "14110911"]
[BlackFideId "4900758"]
[WhiteElo "2434"]
[BlackElo "2366"]

1. d4 {[%clk 01:30:56]} {[%emt 00:00:03]} d5 {[%clk 01:30:57]} {[%emt
00:00:03]} 2. c4 {[%clk 01:31:06]} {[%emt 00:00:21]} c6 {[%clk 01:31:24]}
{[%emt 00:00:03]} 3. cxd5 {[%clk 01:31:15]} {[%emt 00:00:21]} cxd5 {[%clk
01:31:50]} {[%emt 00:00:03]} 4. Bf4 {[%clk 01:31:31]} {[%emt 00:00:15]} Nc6
{[%clk 01:32:11]} {[%emt 00:00:10]} 5. e3 {[%clk 01:31:40]} {[%emt 00:00:20]}
Nf6 {[%clk 01:31:22]} {[%emt 00:01:18]} 6. Bd3 {[%clk 01:31:35]} {[%emt
00:00:36]} e6 {[%clk 01:27:14]} {[%emt 00:04:38]} 7. Nc3 {[%clk 01:31:23]}
{[%emt 00:00:42]} Bd6 {[%clk 01:27:27]} {[%emt 00:00:17]} 8. Bxd6 {[%clk
01:22:50]} {[%emt 00:09:02]} Qxd6 {[%clk 01:27:39]} {[%emt 00:00:19]} 9. f4
{[%clk 01:23:03]} {[%emt 00:00:17]} Bd7 {[%clk 01:21:48]} {[%emt 00:06:21]} 10.
Nf3 {[%clk 00:58:59]} {[%emt 00:24:34]} Ng4 {[%clk 01:12:05]} {[%emt 00:10:13]}
11. Qe2 {[%clk 00:57:45]} {[%emt 00:01:44]} f5 {[%clk 01:06:39]} {[%emt
00:05:56]} 12. a3 {[%clk 00:49:04]} {[%emt 00:09:11]} Nf6 {[%clk 00:56:13]}
{[%emt 00:10:55]} 13. Rc1 {[%clk 00:45:34]} {[%emt 00:04:00]} O-O {[%clk
00:54:57]} {[%emt 00:01:46]} 14. O-O {[%clk 00:45:57]} {[%emt 00:00:08]} Be8
{[%clk 00:50:50]} {[%emt 00:04:37]} 15. Ne5 {[%clk 00:40:24]} {[%emt 00:06:03]}
Qe7 {[%clk 00:47:53]} {[%emt 00:03:26]} 16. Rc2 {[%clk 00:25:08]} {[%emt
00:15:47]} Rd8 {[%clk 00:41:32]} {[%emt 00:06:51]} 17. Nxc6 {[%clk 00:15:56]}
{[%emt 00:09:42]} Bxc6 {[%clk 00:41:19]} {[%emt 00:00:43]} 18. Rfc1 {[%clk
00:16:20]} {[%emt 00:00:06]} Ne8 {[%clk 00:35:55]} {[%emt 00:05:55]} 19. Nb1
{[%clk 00:16:23]} {[%emt 00:00:27]} Ba4 {[%clk 00:33:29]} {[%emt 00:02:55]} 20.
Rc5 {[%clk 00:15:41]} {[%emt 00:01:12]} a6 {[%clk 00:27:31]} {[%emt 00:06:28]}
21. Nd2 {[%clk 00:14:15]} {[%emt 00:01:56]} Nd6 {[%clk 00:24:19]} {[%emt
00:03:42]} 22. Nf3 {[%clk 00:14:36]} {[%emt 00:00:09]} Rc8 {[%clk 00:24:17]}
{[%emt 00:00:33]} 23. b4 {[%clk 00:07:00]} {[%emt 00:08:06]} Rfd8 {[%clk
00:18:07]} {[%emt 00:06:39]} 24. Ne5 {[%clk 00:06:57]} {[%emt 00:00:33]} Qe8
{[%clk 00:18:29]} {[%emt 00:00:08]} 25. g4 {[%clk 00:03:14]} {[%emt 00:04:13]}
Bb5 {[%clk 00:18:36]} {[%emt 00:00:24]} 26. Bxb5 {[%clk 00:02:16]} {[%emt
00:01:28]} axb5 {[%clk 00:18:47]} {[%emt 00:00:18]} 27. gxf5 {[%clk 00:02:01]}
{[%emt 00:00:45]} Nxf5 {[%clk 00:18:17]} {[%emt 00:01:00]} 28. Kf2 {[%clk
00:00:40]} {[%emt 00:01:51]} Nd6 {[%clk 00:17:26]} {[%emt 00:01:20]} 29. Kg2
{[%clk 00:00:36]} {[%emt 00:00:35]} Nc4 {[%clk 00:13:54]} {[%emt 00:04:02]} 30.
Rxc8 {[%clk 00:00:37]} {[%emt 00:00:29]} Rxc8 {[%clk 00:14:22]} {[%emt
00:00:02]} 31. Rc3 {[%clk 00:00:47]} {[%emt 00:00:20]} Ra8 {[%clk 00:12:58]}
{[%emt 00:01:53]} 32. Qd3 {[%clk 00:00:35]} {[%emt 00:00:42]} Qh5 {[%clk
00:12:14]} {[%emt 00:01:15]} 33. h3 {[%clk 00:01:03]} {[%emt 00:00:03]} Qh4
{[%clk 00:08:04]} {[%emt 00:04:39]} 34. Nf3 {[%clk 00:01:16]} {[%emt 00:00:17]}
Qf6 {[%clk 00:07:30]} {[%emt 00:01:04]} 35. Ne5 {[%clk 00:01:32]} {[%emt
00:00:14]} Qh4 {[%clk 00:06:23]} {[%emt 00:01:38]} 36. Nf3 {[%clk 00:01:58]}
{[%emt 00:00:03]} Qf6 {[%clk 00:06:49]} {[%emt 00:00:04]} 37. Ne5 {[%clk
00:02:25]} {[%emt 00:00:03]} 1/2-1/2